lending/lending_fUSD_20240721
["ID","MTS","AMOUNT","RATE_DAILY","PERIOD"]
[332791054,1721526634682,-188.78957682,0.00013648,2]
[332791055,1721526634691,-155.34135198,0.0001367,2]
[332791056,1721526634701,-270.18518051,0.0001367,2]
[332791057,1721526634711,-250.0,0.00013699,2]
[332791058,1721526634720,-88.35520202,0.00013699,2]
[332791059,1721526634731,-255.97559429,0.00013699,2]
[332791060,1721526634870,-461.18920369,0.00013699,2]
[332791061,1721526634879,-82.83079631,0.00013699,2]
[332791062,1721526634891,-87.53920369,0.00013699,2]
[332791063,1721526634900,-162.46079631,0.00013699,2]
[332791064,1721526634911,-474.67037175,0.00013699,2]
[332791065,1721526634920,-1300.0,0.000137,5]
[332791066,1721526634929,-420.0,0.00013728,2]
[332791067,1721526634939,-263.8874,0.000138,2]
[332791068,1721526634948,-2000.0,0.000138,5]
[332791069,1721526634958,-357.63050248,0.00013825,2]
[332791070,1721526634967,-264.60253133,0.00013859,2]
[332791071,1721526634977,-819.0,0.0001386,2]
[332791072,1721526634986,-1549.96382,0.0001386,2]
[332791073,1721526634996,-164.53637235,0.00013889,2]
[332791074,1721526635005,-283.4984058,0.00013889,2]
[332791075,1721526635015,-165.15290819,0.00013896,2]
[332791076,1721526635024,-1074.41757965,0.000139,5]
[332791077,1721526635036,-734.6075021,0.000139,5]
[332791078,1721526638311,-252.72893978,0.00012413,2]
[332791079,1721526638322,-288.82199149,0.00013859,2]
[332791080,1721526638331,-160.41131041,0.00013896,2]
[332791081,1721526638343,-1163.51090331,0.00013896,2]
[332791082,1721526638352,-59.16820097,0.000139,5]
[332791084,1721526638547,-252.72893978,0.00012413,2]
[332791086,1721526638557,-744.21166022,0.000139,5]
[332791089,1721526638569,-87.59505706,0.000139,5]
[332791091,1721526638579,-173.69829215,0.000139,2]
[332791092,1721526638588,-310.83793712,0.000139,2]
[332791095,1721526638600,-199.59641724,0.00013906,2]
[332791097,1721526638610,-176.94035328,0.00013909,2]
[332791099,1721526638624,-407.5709,0.00013945,2]
[332791101,1721526638633,-160.92,0.00013973,2]
[332791103,1721526638642,-1642.46737148,0.0001399,3]
[332791282,1721526640307,-7172.93679144,0.0001399,3]
[332791285,1721526640319,-309.12639055,0.0001399,3]
[332791288,1721526640330,-3549.26405818,0.0001399,3]
[332791292,1721526640341,-555.24662954,0.0001399,3]
[332791309,1721526640496,-763.48000001,0.0001399,3]
[332791330,1721526640684,-703.9999999,0.0001399,3]
[332791332,1721526640695,-5859.33696734,0.0001399,3]
[332791627,1721526643466,-637.13116806,0.00013698,2]
[332791629,1721526643476,-212.8123,0.0001389,2]
[332791631,1721526643485,-37448.42242158,0.0001399,3]
[332791633,1721526643498,-559.40606601,0.0001399,3]
[332791636,1721526643510,-328.7496445,0.0001399,3]
[332791638,1721526643520,-1747.575,0.0001399,3]
[332791640,1721526643531,-8212.32735719,0.0001399,3]
[332791642,1721526643543,-809.57266954,0.0001399,3]
[332791644,1721526643554,-1023.82317081,0.0001399,3]
[332791646,1721526643565,-1223.02034692,0.0001399,3]
[332791649,1721526643576,-840.64392545,0.0001399,3]
[332791651,1721526643587,-43532.2055282,0.0001399,3]
[332791653,1721526643598,-301.616,0.0001399,3]
[332791798,1721526645159,-52100.04435736,0.0001399,3]
[332791799,1721526645168,-6123.1648507,0.00013996,2]
[332791800,1721526645178,-500.0,0.00013999,2]
[332791801,1721526645187,-360.4241353,0.00013999,2]
[332791802,1721526645196,-568.73582907,0.00013999,2]
[332791803,1721526645210,-303.30624944,0.00013999,2]
[332791804,1721526645220,-612.0,0.00014,2]
[332791805,1721526645229,-236784.56518859,0.00014,2]
[332791806,1721526645695,-934.35893033,0.00014,2]
[332791807,1721526645707,-7607.68801163,0.00014,2]
[332791808,1721526645718,-7140.0,0.00014,2]
[332791809,1721526645729,-294.14994472,0.00014,2]
[332791810,1721526645740,-412.84139666,0.00014,2]
[332791811,1721526646603,-200.10199241,0.00013729,2]
[332791812,1721526646612,-6008.7183,0.00014,2]
[332791813,1721526646623,-11189.67229174,0.00014,2]
[332791814,1721526646635,-1483.6967943,0.00014,2]
[332791815,1721526646707,-621.52230721,0.00014,2]
[332791816,1721526646718,-2499.18517507,0.00014,2]
[332791817,1721526646729,-10151.54180451,0.00014,2]
[332791818,1721526646825,-6820.37072697,0.00014,2]
[332791819,1721526646836,-364.6973926,0.00014,2]
[332791827,1721526763475,1694.63704067,0.00012313,2]
[332791828,1721526851433,158.17,0.00018849,30]
[332791829,1721526959233,150.0,0.00011307,2]
[332791830,1721526959255,150.0,0.00011307,2]
[332791831,1721526959276,16.14,0.00011307,2]
[332791832,1721527032373,300.0,0.00011307,2]
[332791841,1721527393559,158.17,0.00018849,30]
[332791842,1721527467515,229.67556373,0.00011959,2]
[332791850,1721527551009,386.57220184,0.00011959,2]
[332791852,1721527600016,300.33,0.00011015,2]
[332791853,1721527641430,276.62111547,0.00011959,2]
[332791871,1721527832582,-485.0,0.00012212,2]
[332791872,1721527832594,-239.55,0.00012752,2]
[332791873,1721527832605,-162.44,0.00012776,2]
[332791874,1721527832619,-603.50800002,0.00012776,2]
[332791875,1721527832636,-34.05199998,0.00012776,2]
[332791876,1721527832647,-4326.23410366,0.00012776,2]
[332791877,1721527832659,-12245.68745817,0.00012778,2]
[332791878,1721527832674,-11654.31254183,0.00012778,2]
[332791879,1721527832686,-173.66,0.00012809,2]
[332791880,1721527832698,-200.0,0.0001288,2]
[332791881,1721527832709,-176.01,0.00013225,2]
[332791882,1721527832720,-300.33,0.00013279,2]
[332791883,1721527832731,-203.58927502,0.00013297,2]
[332791884,1721527832744,-169.56,0.00013326,2]
[332791885,1721527832756,-499.99,0.00013326,2]
[332791886,1721527832768,-348.4,0.00013326,2]
[332791887,1721527832779,-890.74057297,0.00013489,2]
[332791888,1721527832791,-1392.58623116,0.000136,2]
[332791889,1721527832802,-300.0,0.000136,4]
[332791890,1721527832814,-402.76,0.00013699,2]
[332791891,1721527832825,-152.7,0.00013699,2]
[332791892,1721527832836,-170.37,0.00013699,2]
[332791893,1721527832848,-700.0,0.000137,5]
[332791894,1721527832859,-17538.71815761,0.00013796,2]
[332791895,1721527832870,-1100.0,0.000138,5]
[332791896,1721527832882,-1291.63652,0.0001386,2]
[332791897,1721527832893,-500.0,0.00013887,2]
[332791898,1721527832904,-500.0,0.00013888,2]
[332791899,1721527832916,-200.0,0.00013888,2]
[332791900,1721527832927,-150.0,0.00013889,2]
[332791901,1721527832939,-330.02114986,0.00013889,2]
[332791902,1721527832951,-233.7015,0.0001389,2]
[332791903,1721527832962,-4564.9137,0.0001389,2]
[332791904,1721527832975,-2890.1143,0.0001389,2]
[332791905,1721527832986,-310.98286487,0.00013895,2]
[332791906,1721527832997,-23237.91632489,0.00013895,2]
[332791907,1721527833011,-584.59550704,0.00013895,2]
[332791908,1721527833026,-487.4499434,0.00013895,2]
[332791909,1721527833076,-34.04817559,0.00013895,2]
[332791910,1721527833090,-12395.11,0.00013895,2]
[332791911,1721527833103,-6552.66101867,0.00013895,2]
[332791915,1721527833466,-97940.94493041,0.00013895,2]
[332791916,1721527833479,-1500.0,0.000139,5]
[332791917,1721527833490,-860.85339056,0.000139,2]
[332791918,1721527833501,-1262.11625528,0.000139,2]
[332791919,1721527833516,-1615.08859743,0.000139,2]
[332791920,1721527833528,-176.94035326,0.00013905,2]
[332791921,1721527833539,-377.36,0.00013973,2]
[332791922,1721527833551,-173971.37586469,0.0001399,3]
[332791923,1721527833567,-654.02066841,0.0001399,3]
[332791931,1721527838690,-584.45901263,0.00012652,2]
[332791932,1721527838703,-1138.18072319,0.00012652,2]
[332791933,1721527838714,-531.84950943,0.00012652,2]
[332791934,1721527838724,-17037.0012675,0.0001399,3]
[332791935,1721527838737,-3074.637,0.0001399,3]
[332791936,1721527838748,-3116.23335189,0.0001399,3]
[332791937,1721527838760,-10219.39772,0.0001399,3]
[332791938,1721527838772,-714.54152383,0.0001399,3]
[332791939,1721527838784,-3331.41697924,0.0001399,3]
[332791940,1721527838797,-1008.23322644,0.0001399,3]
[332791941,1721527838806,-4653.6052865,0.00013995,2]
[332791942,1721527838815,-3398.7265706,0.00013995,2]
[332791943,1721527838824,-62666.9275675,0.00013995,2]
[332791944,1721527838834,-238.20732686,0.00013998,2]
[332791945,1721527838843,-258.12724059,0.00013999,2]
[332791946,1721527838853,-300.0,0.00013999,2]
[332791947,1721527838863,-516.0,0.00014,2]
[332791948,1721527838872,-96229.30778267,0.00014,2]
[332791949,1721527838883,-630.73413543,0.00014,2]
[332791950,1721527838935,-529.12011047,0.00014,2]
[332791952,1721527838946,-70512.55288488,0.00014,2]
[332792086,1721527840459,-533.56675885,0.00014,2]
[332792115,1721527840662,-1209.54095137,0.00014,2]
[332792116,1721527840675,-49288.94165201,0.00014,2]
[332792117,1721527840685,-474.621015,0.00014,2]
[332792118,1721527840865,-32935.320011,0.00014,2]
[332792120,1721527840876,-88513.95765878,0.00014,2]
[332792121,1721527840887,-12655.59017907,0.00014,2]
[332792492,1721527844548,-82991.28691468,0.00014,2]
[332792495,1721527844557,-214360.95369578,0.00014,2]
[332792498,1721527844569,-369.87651196,0.00014,2]
[332792721,1721527846572,-4344.65074837,0.000138,2]
[332792723,1721527846581,-199.41224556,0.0001386,2]
[332792747,1721527846846,-3954.58775444,0.0001386,2]
[332792749,1721527846856,-40620.52114953,0.00014,2]
[332792767,1721527847082,-846.47514523,0.00014,2]
[332793571,1721527859593,248.6486917,0.00011959,2]
[332793572,1721527859616,5493.11803277,0.00011959,2]
[332793574,1721527939913,259.68832074,0.00011959,2]
[332793575,1721528035383,500.0,0.00011959,2]
[332793576,1721528035725,500.0,0.00011959,2]
[332793577,1721528036050,500.0,0.00011959,2]
[332793578,1721528036549,500.0,0.00011959,2]
[332793579,1721528036714,500.0,0.00011959,2]
[332793580,1721528037051,500.0,0.00011959,2]
[332793581,1721528037506,500.0,0.00011959,2]
[332793582,1721528038259,500.0,0.00011959,2]
[332793583,1721528038320,500.0,0.00011959,2]
[332793584,1721528038499,667.0,0.00011959,2]
[332793585,1721528102753,346.37,0.00011324,2]
[332793587,1721528671402,329.05,0.00010756,2]
[332793588,1721528719495,294.98595057,9e-05,2]
[332793589,1721528728960,1951.10391058,0.000118,2]
[332793591,1721528807655,3065.18159048,0.00011959,2]
[332793595,1721528882212,1983.36630478,0.0001,2]
[332793607,1721529019768,19663.15203905,0.00011959,2]
[332793616,1721529031683,-3648.62042691,0.00012021,2]
[332793617,1721529031693,-300.0,0.0001212,2]
[332793618,1721529031702,-159.31016492,0.00012121,2]
[332793619,1721529031712,-11966.30435797,0.00012504,2]
[332793620,1721529031723,-149.87310969,0.00012504,2]
[332793621,1721529031732,-165.90640881,0.00012504,2]
[332793622,1721529031743,-238.54359119,0.00012504,2]
[332793623,1721529031753,-150.0,0.00012534,2]
[332793624,1721529031762,-308.23072483,0.00012535,2]
[332793625,1721529031773,-922.53142088,0.00012535,2]
[332793626,1721529031784,-481.71810404,0.00012535,2]
[332793627,1721529031795,-650.40807414,0.00012535,2]
[332793628,1721529031806,-689.30241408,0.00012535,2]
[332793629,1721529031847,-20847.80926203,0.00012535,2]
[332793630,1721529031857,-500.0,0.00012562,2]
[332793631,1721529031866,-356.58,0.00012591,2]
[332793632,1721529031875,-482.35,0.00012598,2]
[332793633,1721529031884,-426.25,0.00012605,2]
[332793634,1721529031894,-640.0,0.00012633,2]
[332793635,1721529031903,-800.53,0.00012639,2]
[332793636,1721529031912,-250.0,0.0001269,2]
[332793637,1721529031923,-176.03,0.00012697,2]
[332793638,1721529031931,-158.12961263,0.00012748,2]
[332793639,1721529031940,-360.0,0.00012913,2]
[332793640,1721529031951,-861.2,0.00012915,2]
[332793641,1721529031961,-196.80371328,0.00012993,2]
[332793643,1721529031972,-303.18628672,0.00012993,2]
[332793645,1721529031981,-144.94330082,0.00013014,2]
[332793647,1721529031992,-29.67669918,0.00013014,2]
[332793649,1721529032003,-329.05,0.0001302,2]
[332793651,1721529032012,-150.99,0.00013121,2]
[332793653,1721529032021,-1632.55,0.00013121,2]
[332793655,1721529032033,-512.4442829,0.00013297,2]
[332793657,1721529032042,-420.0,0.00013303,2]
[332793659,1721529032051,-158.12961263,0.00013319,2]
[332793661,1721529032060,-4217.55359892,0.00013378,2]
[332793663,1721529032071,-360.35116936,0.00013378,2]
[332793669,1721529032118,-2047.29318554,0.00013378,2]
[332793671,1721529032127,-3034.06950128,0.00013378,2]
[332793673,1721529032136,-8139.76523318,0.00013398,2]
[332793675,1721529032147,-12141.49254332,0.00013398,2]
[332793677,1721529032157,-190.66,0.00013413,2]
[332793679,1721529032167,-355.49,0.00013478,2]
[332793681,1721529032176,-368.9091776,0.00013479,2]
[332793683,1721529032186,-4297.8055953,0.00013479,2]
[332793684,1721529032198,-1281.24112432,0.00013489,2]
[332793685,1721529032207,-306.18145975,0.00013499,2]
[332793686,1721529032217,-410.29589775,0.00013499,2]
[332793687,1721529032227,-306.18145975,0.00013499,2]
[332793688,1721529032237,-276.62111547,0.00013561,2]
[332793689,1721529032246,-1445.92071075,0.00013579,2]
[332793690,1721529032255,-593.96193863,0.00013579,2]
[332793691,1721529032264,-963.36978697,0.00013579,2]
[332793692,1721529032274,-255.0,0.00013625,2]
[332793693,1721529032283,-1388.69704685,0.00013648,2]
[332793694,1721529032292,-660.82291243,0.0001367,2]
[332793695,1721529032301,-155.4482824,0.0001367,2]
[332793696,1721529032310,-11157.32124238,0.00013688,2]
[332793697,1721529032319,-165.1179014,0.00013698,2]
[332793698,1721529032328,-183.14,0.00013699,2]
[332793699,1721529032338,-170.37,0.00013699,2]
[332793700,1721529032347,-565.99,0.00013699,2]
[332793701,1721529032357,-500.0,0.00013699,2]
[332793702,1721529032366,-250.0,0.00013699,2]
[332793703,1721529032375,-305.71003789,0.00013699,2]
[332793704,1721529032384,-155.48801082,0.00013699,2]
[332793705,1721529032393,-155.45227586,0.00013699,2]
[332793706,1721529032403,-164.092104,0.00013699,2]
[332793707,1721529032412,-242.83152267,0.00013699,2]
[332793709,1721529032423,-155.25739506,0.00013699,2]
[332793710,1721529032432,-1008.0,0.000137,2]
[332793712,1721529032441,-155.61053247,0.0001372,2]
[332793714,1721529032451,-155.5725194,0.0001372,2]
[332793716,1721529032460,-329.39463686,0.0001372,2]
[332793718,1721529032470,-485.79887179,0.0001372,2]
[332793720,1721529032479,-270.71389979,0.0001372,2]
[332793722,1721529032488,-2629.368,0.00013727,2]
[332793724,1721529032497,-3776.7357,0.0001376,2]
[332793726,1721529032507,-17992.50060425,0.0001379,2]
[332793728,1721529032516,-1137.2174,0.0001379,2]
[332793730,1721529032525,-4298.1541,0.00013795,2]
[332793732,1721529032534,-167.3834,0.00013795,2]
[332793734,1721529032544,-4170.53542633,0.00013799,2]
[332793735,1721529032553,-277.34033653,0.00013805,2]
[332793736,1721529032562,-3184.0,0.0001386,2]
[332793737,1721529032571,-500.0,0.00013887,2]
[332793738,1721529032580,-500.0,0.00013888,2]
[332793739,1721529032589,-158.12961263,0.0001389,2]
[332793740,1721529032598,-2653.1172,0.0001389,2]
[332793741,1721529032607,-352.9505,0.0001389,2]
[332793742,1721529032617,-474.5214,0.0001389,2]
[332793743,1721529032626,-46202.3213,0.0001389,2]
[332793744,1721529032636,-2500.0,0.0001389,2]
[332793745,1721529032645,-310.5213,0.0001389,2]
[332793746,1721529032655,-1558.9602085,0.000139,2]
[332793747,1721529032664,-827.8092,0.000139,2]
[332793748,1721529032674,-3939.8389,0.000139,2]
[332793749,1721529032683,-703.6184,0.000139,2]
[332793750,1721529032692,-2846.7415,0.000139,2]
[332793751,1721529032701,-1260.2307,0.000139,2]
[332793752,1721529032711,-2576.1198,0.000139,2]
[332793753,1721529032720,-176.94035326,0.000139,2]
[332793754,1721529032731,-168.23914243,0.000139,2]
[332793755,1721529032741,-157.74526458,0.000139,2]
[332793756,1721529032750,-1200.0,0.000139,2]
[332793757,1721529032759,-311.11759958,0.000139,2]
[332793758,1721529032768,-672.30105452,0.00013925,2]
[332793759,1721529032777,-841.41083684,0.00013925,2]
[332793760,1721529032786,-1150.88,0.0001398,2]
[332793761,1721529032795,-67813.0910553,0.0001399,3]
[332793762,1721529032804,-155.22708094,0.0001399,2]
[332793763,1721529032813,-1150.88,0.0001399,2]
[332793764,1721529032822,-1150.88,0.0001399,2]
[332793765,1721529032831,-1150.88,0.0001399,2]
[332793766,1721529033020,-1150.88,0.0001399,2]
[332793767,1721529033030,-630.07858802,0.00013999,2]
[332793768,1721529033039,-572.04207851,0.00013999,2]
[332793769,1721529033049,-526.0,0.00014,2]
[332793770,1721529033058,-1016996.8513929,0.00014,2]
[332793771,1721529033070,-650.01339646,0.00014,2]
[332793772,1721529033082,-765.29022052,0.00014,2]
[332793773,1721529033093,-285.09087776,0.00014,2]
[332793776,1721529037754,-305.49839322,0.00013499,2]
[332793777,1721529037764,-166.78403649,0.00013699,2]
[332793778,1721529037774,-227.49811675,0.00013699,2]
[332793779,1721529037783,-277.91195301,0.00013997,2]
[332793780,1721529037794,-335.76750053,0.00013997,2]
[332793781,1721529037805,-288.91797455,0.00013997,2]
[332793782,1721529037879,-246.72183454,0.00013997,2]
[332793783,1721529037889,-2369.51678653,0.00014,2]
[332793784,1721529038019,-1135.6169544,0.00014,2]
[332793953,1721529039736,-3197.1262172,0.00014,2]
[332793955,1721529039748,-859.97755082,0.00014,2]
[332793957,1721529039760,-822285.80032638,0.00014,2]
[332793960,1721529039771,-80609.6098695,0.00014,2]
[332793962,1721529039781,-395588.34480472,0.00014,2]
[332793964,1721529039794,-987.22897559,0.00014,2]
[332793990,1721529040061,-1755.29837126,0.00014,2]
[332793993,1721529040073,-2772.55176547,0.00014,2]
[332793995,1721529040085,-11542.57739251,0.00014,2]
[332793997,1721529040097,-2495.58714316,0.00014,2]
[332794310,1721529042822,-461.15633412,0.00013999,2]
[332794313,1721529042831,-179.34553988,0.00014,2]
[332794316,1721529042843,-297352.24061046,0.00014,2]
[332794388,1721529043104,-33293.22027576,0.00014,2]
[332794392,1721529043116,-12611.58875453,0.00014,2]
[332794396,1721529043128,-397.66172814,0.00014,2]
[332794399,1721529043139,-504.43233081,0.00014,2]
[332794402,1721529043150,-35352.90001239,0.00014,2]
[332794405,1721529043161,-1217.81731224,0.00014,2]
[332794410,1721529043173,-6550.50022278,0.00014,2]
[332794417,1721529043214,-1013.27421864,0.00014,2]
[332794420,1721529043225,-416.89483012,0.00014,2]
[332794618,1721529046214,-389.63124367,0.0001363,2]
[332794620,1721529046225,-284.77642206,0.0001363,2]
[332794622,1721529046236,-4683.82300927,0.0001363,2]
[332794624,1721529046246,-524.0,0.00014,2]
[332794626,1721529046255,-25652.00621133,0.00014,2]
[332794628,1721529046267,-14619.94,0.00014,2]
[332794630,1721529046279,-1764.41218263,0.00014,2]
[332794637,1721529046334,-6254.49072629,0.00014,2]
[332794639,1721529046344,-382.88143247,0.00014,2]
[332794641,1721529046357,-662.63936826,0.00014,2]
[332794643,1721529046368,-1217.37268415,0.00014,2]
[332794646,1721529046379,-469.65,0.00014,2]
[332795006,1721529097741,348.80035671,0.00011959,2]
[332795021,1721529234693,184.97390296,0.00011959,2]
[332795024,1721529392207,150.5,0.0001399,30]
[332795025,1721529392672,150.5,0.0001398,30]
[332795026,1721529393257,150.5,0.0001397,30]
[332795031,1721529511601,200.0,0.0001399,30]
[332795032,1721529512067,200.0,0.0001398,30]
[332795033,1721529512537,200.0,0.0001397,30]
[332795035,1721529631658,209.0,0.0001399,30]
[332795036,1721529632157,209.0,0.0001398,30]
[332795037,1721529632648,209.0,0.0001397,30]
[332795039,1721529751494,191.0,0.0001399,30]
[332795040,1721529751968,191.0,0.0001398,30]
[332795041,1721529752484,191.0,0.0001397,30]
[332795043,1721529872173,179.0,0.0001399,30]
[332795044,1721529872330,179.0,0.0001398,30]
[332795045,1721529872563,179.0,0.0001397,30]
[332795046,1721529948043,317.29,0.00011259,2]
[332795047,1721529991656,171.0,0.0001399,30]
[332795048,1721529992159,171.0,0.0001398,30]
[332795049,1721529992627,171.0,0.0001397,30]
[332795052,1721530112322,150.5,0.0001399,30]
[332795053,1721530112767,150.5,0.0001398,30]
[332795054,1721530113302,150.5,0.0001397,30]
[332795057,1721530232018,-216.49,0.0001304,2]
[332795058,1721530232028,-531.87,0.00013065,2]
[332795059,1721530232038,-298.64,0.00013117,2]
[332795060,1721530232049,-213.36,0.00013117,2]
[332795061,1721530232058,-152.53,0.00013333,2]
[332795062,1721530232068,-317.29,0.00013523,2]
[332795063,1721530232077,-150.0,0.00013562,2]
[332795064,1721530232086,-66.81,0.00013664,2]
[332795065,1721530232098,-421.19,0.00013664,2]
[332795066,1721530232108,-524.55,0.00013698,2]
[332795067,1721530232118,-101.9758435,0.00013698,2]
[332795068,1721530232129,-398.0141565,0.00013698,2]
[332795069,1721530232138,-84.76170094,0.00013699,2]
[332795070,1721530233107,-478.05829906,0.00013699,2]
[332795071,1721530233117,-81.69932272,0.00013699,2]
[332795072,1721530233128,-168.30067728,0.00013699,2]
[332795073,1721530233138,-1689.88,0.00013699,2]
[332795074,1721530233147,-3601.18,0.00013699,2]
[332795075,1721530233157,-1000.0,0.000137,2]
[332795076,1721530233166,-150.0,0.00013789,2]
[332795077,1721530233176,-1000.0,0.0001379,2]
[332795078,1721530233185,-51889.6448,0.0001379,2]
[332795079,1721530233194,-12890.01787283,0.000138,2]
[332795080,1721530233204,-1000.0,0.000138,2]
[332795081,1721530233215,-917.42616838,0.0001386,2]
[332795082,1721530233227,-718.64159162,0.0001386,2]
[332795083,1721530233238,-1636.06776,0.0001388,2]
[332795084,1721530233247,-3769.42166451,0.0001389,2]
[332795085,1721530233256,-449.5458684,0.0001389,2]
[332795086,1721530233268,-1811.5216316,0.0001389,2]
[332795088,1721530233277,-192.378,0.000139,2]
[332795090,1721530233286,-1522.1012,0.000139,2]
[332795092,1721530233295,-211.4978,0.000139,2]
[332795093,1721530233304,-176.94035326,0.000139,2]
[332795096,1721530233314,-16291.63532462,0.000139,2]
[332795099,1721530233323,-164.81437483,0.000139,2]
[332795102,1721530233332,-2863.04645725,0.000139,2]
[332795104,1721530233345,-324.17337383,0.000139,2]
[332795106,1721530233354,-560.9405579,0.000139,2]
[332795108,1721530233364,-114.88606827,0.000139,2]
[332795110,1721530233375,-333.31463473,0.000139,2]
[332795112,1721530233385,-311.11759957,0.000139,2]
[332795114,1721530233395,-418.052813,0.00013973,2]
[332795116,1721530233404,-47676.3734142,0.0001399,3]
[332795117,1721530233414,-1049.4492465,0.0001399,3]
[332795118,1721530233423,-202.36261918,0.0001399,2]
[332795119,1721530233433,-1034398.5044504,0.00014,2]
[332795120,1721530233444,-992.484,0.00014,2]
[332795121,1721530233457,-1673.30962291,0.00014,2]
[332795122,1721530233604,150.5,0.0001399,30]
[332795123,1721530234661,150.5,0.0001398,30]
[332795124,1721530235203,150.5,0.0001397,30]
[332795127,1721530238120,-296.71721676,0.00013297,2]
[332795128,1721530238134,-1533.79112296,0.00013297,2]
[332795129,1721530238143,-426467.57251827,0.00014,2]
[332795131,1721530238154,-1654.53650654,0.00014,2]
[332795132,1721530238166,-1072.50233623,0.00014,2]
[332795133,1721530238177,-7015.537408,0.00014,2]
[332795134,1721530238188,-1969.22712928,0.00014,2]
[332795135,1721530238199,-4795.42269386,0.00014,2]
[332795136,1721530238398,-667.76472037,0.00014,2]
[332795137,1721530238410,-326.82220256,0.00014,2]
[332795138,1721530238422,-655.82000289,0.00014,2]
[332795240,1721530239989,-3210.81251125,0.00014,2]
[332795269,1721530240249,-730.23501026,0.00014,2]
[332795272,1721530240261,-12945.27415203,0.00014,2]
[332795274,1721530240272,-9943.27368349,0.00014,2]
[332795297,1721530240495,-938.35073009,0.00014,2]
[332795300,1721530240507,-850.24946448,0.00014,2]
[332795582,1721530243062,-1093.93961604,0.00014,2]
[332795585,1721530243073,-305.20127118,0.00014,2]
[332795588,1721530243085,-4287.40138913,0.00014,2]
[332795625,1721530243288,-2396.5336603,0.00014,2]
[332795629,1721530243299,-31445.4474969,0.00014,2]
[332795632,1721530243311,-619.07867794,0.00014,2]
[332795635,1721530243323,-395.43457741,0.00014,2]
[332795638,1721530243338,-392.29490377,0.00014,2]
[332795668,1721530243522,-705.37999999,0.00014,2]
[332795671,1721530243534,-742.74,0.00014,2]
[332795674,1721530243546,-587.53493653,0.00014,2]
[332795678,1721530243557,-636.87818,0.00014,2]
[332795682,1721530243568,-482.00237009,0.00014,2]
[332795904,1721530245967,-500.0,0.00014,2]
[332795925,1721530246206,-16994.01969472,0.00014,2]
[332795928,1721530246217,-1563.91,0.00014,2]
[332795930,1721530246228,-865.4224377,0.00014,2]
[332795932,1721530246239,-27466.2388339,0.00014,2]
[332795934,1721530246250,-3278.93484286,0.00014,2]
[332795936,1721530246261,-269.38241397,0.00014,2]
[332795938,1721530246272,-3579.93704342,0.00014,2]
[332795940,1721530246283,-657755.51362389,0.00014,2]
[332795943,1721530246294,-572.85,0.00014,2]
[332795961,1721530246483,-1595.25934319,0.00014,2]
[332796533,1721530651129,323.71,0.00011312,2]
[332796534,1721531072400,150.5,0.0002235,30]
[332796535,1721531072842,150.5,0.0002234,30]
[332796536,1721531073311,232.13,0.0002233,30]
[332796542,1721531334707,-700.0,0.000138,5]
[332796543,1721531334730,-1400.0,0.000139,5]
[332796544,1721531392648,307.52,0.00010644,2]
[332796565,1721531432229,-941.09333685,0.00012397,2]
[332796567,1721531432239,-998.56256363,0.00012439,2]
[332796569,1721531432248,-334.28,0.0001259,2]
[332796571,1721531432258,-300.0,0.0001264,2]
[332796572,1721531432267,-445.02277324,0.00012641,2]
[332796575,1721531432280,-412.81053676,0.00012641,2]
[332796576,1721531432291,-263.744,0.00012641,2]
[332796577,1721531432302,-999.78872132,0.00012641,2]
[332796578,1721531432313,-2700.0,0.00012641,2]
[332796579,1721531432324,-3191.01710343,0.00012641,2]
[332796580,1721531432335,-1021.99686525,0.00012641,2]
[332796581,1721531432345,-250.0,0.00012641,2]
[332796582,1721531432354,-20510.53632393,0.00012641,2]